[Event "CCT Chesscom Classic-D2 2024"]
[Site "Online"]
[Date "2024.05.10"]
[Round "1"]
[White "Caruana, Fabiano"]
[Black "Hakobyan, Aram"]
[Result "1/2-1/2"]
[ECO "C50"]
[WhiteElo "2805"]
[BlackElo "2617"]
[Annotator "TA"]
[PlyCount "108"]
[EventDate "2024.05.08"]
[EventType "k.o."]
[EventCountry "NET"]
[SourceTitle "playchess.com"]
[Source "ChessBase"]
[SourceQuality "1"]
[TimeControl "600+2"]

{[%evp 9,108,4,30,17,20,15,22,21,28,27,29,0,0,-17,43,-25,-45,-45,-38,-59,-50,-52,-58,-62,-11,-2,-7,-57,-46,-49,-59,-68,-56,-75,-63,-78,-63,-63,-16,-71,-72,-92,146,-28,-29,-70,0,0,0,0,0,0,3,0,0,0,3,4,13,12,15,13,18,4,10,0,12,8,8,4,4,-2,0,-8,0,0,8,-50,8,8,8,8,8,8,8,8,8,8,8,8,8,8,8,8,8,-8,-8,-8,-8,-8,0]} 1. e4 {[%emt 0:00:03]} e5 {[%emt 0:00:04]} 2. Nf3 {[%emt 0:00:01]} Nc6 {[%emt 0:00:01]} 3. Bc4 {[%emt 0:00:01]} Bc5 {[%emt 0:00:01]} 4. O-O {[%emt 0:00:02]} d6 {[%emt 0:00:04]} 5. c3 {[%emt 0:00:02]} Bb6 {[%emt 0:00:32]} 6. Re1 {[%emt 0:00:03]} h6 {[%emt 0:00:15]} 7. d3 {[%emt 0:01:32]} Nge7 {[%emt 0:00:03]} 8. a4 {[%emt 0:00:02]} O-O {[%emt 0:00:03]} 9. Nbd2 {[%emt 0:00:06]} Ng6 {[%emt 0:00:05]} 10. Bb3 {[%emt 0:00:09]} (10. b4 $142 a6 11. Nf1) 10... Kh8 $11 {[%emt 0:00:45]} 11. Nc4 {[%emt 0:00:06]} Na5 {[%emt 0:00:04]} (11... f5 $11) 12. Nxb6 {[%emt 0:00:27]} ({White should try} 12. Nxa5 $14 Bxa5 13. d4) 12... Nxb3 {[%emt 0:00:15]} 13. Qxb3 {[%emt 0:01:22]} axb6 {[%emt 0:00:02]} 14. Be3 {[%emt 0:00:23]} f5 {[%emt 0:00:20]} 15. exf5 {[%emt 0:00:01]} Bxf5 {[%emt 0:00:00]} 16. d4 {[%emt 0:00:00]} e4 {[%emt 0:00:34]} ({Better is} 16... Bd7 $15 17. Nd2 Qh4) 17. Nd2 {[%emt 0:00:02]} Qd7 {[%emt 0:00:56]} 18. a5 {[%emt 0:00:57]} bxa5 $15 {[%emt 0:01:57]} ({Much weaker is} 18... Rxa5 $6 19. Rxa5 bxa5 20. Qxb7 $11) 19. Qxb7 {[%emt 0:00:04][%cal Ob7b3]} Nh4 $36 {[%emt 0:00:01][%mdl 2048] White is under pressure.} 20. Kh1 $1 {[%emt 0:00:33][%cal Ob2b3]} Rab8 {[%emt 0:00:29]} 21. Qd5 {[%emt 0:00:51]} Rxb2 {[%emt 0:00:08][%cal Oh4g2] [#] Hoping for ...Nxg2!} 22. Rg1 {[%emt 0:00:30]} Rb5 {[%emt 0:00:15]} 23. Qa2 {[%emt 0:00:05]} Bg6 {[%emt 0:00:39]} (23... Ra8 $15 24. Qc2 Rbb8) 24. d5 {[%emt 0:00:06]} (24. Qa4 $11 c6 25. c4) 24... Ra8 {[%emt 0:00:25]} 25. Qa4 {[%emt 0:00:28] Threatens to win with c4.} Bf5 $2 {[%emt 0:00:04] [#]} (25... Qe8 $17 {stays on course.} 26. c4 Rbb8 27. Qxe8+ Rxe8) 26. c4 $2 {[%emt 0:00:05] White is more active.} (26. g3 $1 $16) 26... Rbb8 {[%emt 0:00:21]} 27. Qc2 {[%emt 0:00:03][%cal Oc2c3]} Re8 {[%emt 0:00:28]} (27... a4 $15) 28. Qc3 $11 {[%emt 0:00:03][%csl LRa5,LRh6]} Kh7 {[%emt 0:00:21]} 29. Rxa5 {[%emt 0:00:02]} Rxa5 {[%emt 0:00:00]} 30. Qxa5 {[%emt 0:00:01]} Bg6 {[%emt 0:00:11]} 31. Nf1 {[%emt 0:00:17]} Nf5 {[%emt 0:00:12]} 32. Ng3 {[%emt 0:00:08]} Nxg3+ {[%emt 0:00:41]} 33. hxg3 {[%emt 0:00:02]} c6 {[%emt 0:00:29] Black is weak on the dark squares} 34. dxc6 {[%emt 0:00:15]} Qxc6 {[%emt 0:00:02][%cal Oe8e5] Strongly threatening ...Re5!} 35. Rc1 {[%emt 0:00:01]} Ra8 {[%emt 0:00:07]} 36. Qc3 {[%emt 0:00:07]} Rc8 {[%emt 0:00:05]} 37. Bd4 {[%emt 0:00:25]} Rc7 {[%emt 0:00:01]} 38. g4 {[%emt 0:00:10]} Qd7 {[%emt 0:00:06]} 39. Qg3 {[%emt 0:00:04]} Qe6 {[%emt 0:00:05]} 40. c5 {[%emt 0:00:01]} Rc6 {[%emt 0:00:01]} 41. Qf4 {[%emt 0:00:29]} dxc5 {[%emt 0:00:03]} 42. Bxc5 {[%emt 0:00:02]} Qf6 {[%emt 0:00:02]} 43. Qe3 {[%emt 0:00:08]} ({White should play} 43. Qxf6 $11 gxf6 44. Kh2) 43... Qg5 {[%emt 0:00:04]} (43... Qh4+ $15 44. Kg1 Qxg4) 44. Qxg5 {[%emt 0:00:03] The position is equal.} hxg5 {[%emt 0:00:00][%mdl 4096] Endgame. KRB-KRB} 45. Kh2 {[%emt 0:00:01]} Bf7 {[%emt 0:00:04]} 46. Kg3 {[%emt 0:00:07]} Kg6 {[%emt 0:00:01]} 47. Rc3 {[%emt 0:00:00]} Be6 {[%emt 0:00:01]} 48. f3 {[%emt 0:00:05]} exf3 {[%emt 0:00:02]} 49. gxf3 {[%emt 0:00:00]} Bf7 {[%emt 0:00:01]} 50. Bd4 {[%emt 0:00:03]} Rxc3 {[%emt 0:00:01]} 51. Bxc3 {[%emt 0:00:00]} Be6 {[%emt 0:00:01]} 52. Bxg7 {[%emt 0:00:02]} Kxg7 {[%emt 0:00:01]} 53. f4 {[%emt 0:00:01]} gxf4+ {[%emt 0:00:01]} 54. Kxf4 {[%emt 0:00:00]} Bxg4 {[%emt 0:00:00] Weighted Error Value: White=0.17 (very precise) /Black=0.19 (very precise) .  Mistake:       	White=6     	Black=6      Inaccurate:     	White=1     	---        OK:         	White=14    	Black=16     Best:        	White=3     	Black=3      Strong:       	White=1     	---} 1/2-1/2

[Event "CCT Chesscom Classic-D2 2024"]
[Site "Online"]
[Date "2024.05.10"]
[Round "1"]
[White "So, Wesley"]
[Black "Martinez Alcantara, Jose Eduardo"]
[Result "1/2-1/2"]
[ECO "E01"]
[WhiteElo "2757"]
[BlackElo "2612"]
[Annotator "TA RC"]
[PlyCount "83"]
[EventDate "2024.05.08"]
[EventType "k.o."]
[EventCountry "NET"]
[SourceTitle "playchess.com"]
[Source "ChessBase"]
[SourceQuality "1"]
[TimeControl "600+2"]

{[%evp 20,83,53,58,54,31,29,41,42,41,47,43,44,45,65,51,70,74,67,45,59,0,67,0,67,29,32,49,66,62,65,33,31,28,45,55,44,47,97,106,95,102,149,133,149,139,285,275,289,313,295,200,501,465,507,502,512,536,627,381,403,386,399,416,477,455]} 1. d4 {[%emt 0:00:18]} Nf6 {[%emt 0:00:17]} 2. c4 {[%emt 0:00:02]} e6 {[%emt 0:00:02]} 3. Nf3 {[%emt 0:00:03]} d5 {[%emt 0:00:04]} 4. g3 {[%emt 0:00:03]} h6 {[%emt 0:00:04]} 5. Bg2 {[%emt 0:00:00]} Bd6 {[%emt 0:00:01]} 6. O-O {[%emt 0:00:06] E01: Catalan: Early deviations.} O-O {[%emt 0:00:03]} 7. Qc2 {[%emt 0:00:07]} Nbd7 {[%emt 0:00:28]} 8. Rd1 {[%emt 0:00:09]} b6 {[%emt 0:00:34]} 9. Nc3 {[%emt 0:00:19]} Bb7 {[%emt 0:00:01]} 10. cxd5 {[%emt 0:00:06]} exd5 {[%emt 0:00:02]} 11. Nb5 $146 {[%emt 0:00:06]} ({Predecessor:} 11. Nh4 Re8 12. Nf5 Bf8 13. Bf4 a6 14. Qb3 c6 15. Rac1 Re6 16. Bh3 Nh5 17. Bd2 {½-½ Dzhumagaliev,Y (2411)-Kozionov,K (2444) RUS-ch Rapid 2023 (10)}) 11... Ba6 {[%emt 0:00:09]} 12. Nxd6 {[%emt 0:00:02]} cxd6 {[%emt 0:00:00]} 13. Re1 {[%emt 0:00:39]} Re8 {[%emt 0:00:11]} 14. Be3 {[%emt 0:01:02]} Ne4 {[%emt 0:01:44]} 15. Qa4 {[%emt 0:00:34]} Bb7 {[%emt 0:00:20]} 16. Rac1 {[%emt 0:00:05]} a6 {[%emt 0:00:31]} 17. Nd2 {[%emt 0:00:22]} Ndf6 {[%emt 0:00:43]} 18. Nf1 {[%emt 0:00:30]} Ng4 {[%emt 0:00:33]} 19. Bf3 {[%emt 0:00:13]} Ngf6 {[%emt 0:00:01]} 20. Bg2 {[%emt 0:00:07]} Ng4 $1 {[%emt 0:00:02]} 21. Bf3 {[%emt 0:00:02]} Ngf6 $1 {[%emt 0:00:01]} 22. Rc2 {[%emt 0:00:16]} b5 {[%emt 0:00:11]} 23. Qb3 {[%emt 0:00:10]} Bc8 {[%emt 0:00:32]} 24. Bg2 {[%emt 0:00:17]} Bf5 {[%emt 0:01:11]} 25. f3 {[%emt 0:00:10]} Ng5 {[%emt 0:00:02]} 26. Rc3 {[%emt 0:00:10]} Ne6 {[%emt 0:00:18]} 27. g4 {[%emt 0:00:09]} Bg6 {[%emt 0:00:11]} 28. Ng3 {[%emt 0:00:08]} Rc8 {[%emt 0:00:06]} (28... Rb8 $14) 29. Rxc8 $16 {[%emt 0:00:23]} Qxc8 {[%emt 0:00:00]} 30. Rc1 {[%emt 0:00:03]} Qd8 {[%emt 0:00:01]} (30... Qb7 $142) 31. h4 {[%emt 0:00:10]} Qb6 {[%emt 0:00:21]} 32. Qc3 {[%emt 0:00:14]} h5 {[%emt 0:00:15] [#]} (32... Qa7 $16 33. Kf2 Re7) 33. g5 $1 $18 {[%emt 0:00:05]} Nd7 {[%emt 0:00:04]} 34. f4 {[%emt 0:00:05]} b4 {[%emt 0:00:43]} 35. Qc6 {[%emt 0:00:16]} Qa7 $2 {[%emt 0:00:04]} (35... Nxg5 $2 36. fxg5 (36. Qxd7 Rxe3 37. Nf5 Rxe2 $16) 36... Qxc6 (36... Rxe3 $2 37. Qa8+ Kh7 38. Rc8 $18) 37. Rxc6 $18) (35... Nxf4 {is a better chance.} 36. Qxb6 (36. Qxd7 $2 Rxe3 37. Kh2 Kh7 $19) (36. Bxf4 Qxd4+ 37. e3 Rxe3 $11) 36... Nxe2+ 37. Nxe2 (37. Kf2 Nxb6 38. Kxe2 Nc4 $14) 37... Nxb6) 36. Qxd5 $18 {[%emt 0:00:47]} Nc7 {[%emt 0:00:23]} 37. Qf3 {[%emt 0:00:10]} (37. Qxd6 Nb5 38. Qd5 Rxe3 39. Rc8+ Nf8 $18) 37... Nb5 {[%emt 0:00:22]} 38. Bf2 {[%emt 0:00:21]} (38. Nxh5 Nxd4 39. Kh1 (39. Kf2 Bxh5 40. Qxh5 Rxe3 $17) 39... Bxh5 40. Bxd4 Qxd4 $17) 38... f5 {[%emt 0:00:12]} 39. Qb7 {[%emt 0:00:26]} Qxb7 {[%emt 0:00:13]} 40. Bxb7 {[%emt 0:00:00]} Nb8 {[%emt 0:00:01]} 41. Bf3 {[%emt 0:00:13]} Bf7 {[%emt 0:00:02]} 42. Nxf5 {[%emt 0:00:02]} ({Don't play} 42. Bxh5 Bxh5 43. Nxh5 a5) 1/2-1/2

[Event "CCT Chesscom Classic-D2 2024"]
[Site "Online"]
[Date "2024.05.10"]
[Round "1"]
[White "Dominguez Perez, Leinier"]
[Black "Kollars, Dmitrij"]
[Result "0-1"]
[ECO "C55"]
[WhiteElo "2748"]
[BlackElo "2648"]
[Annotator "TA"]
[PlyCount "62"]
[EventDate "2024.05.08"]
[EventType "k.o."]
[EventCountry "NET"]
[SourceTitle "playchess.com"]
[Source "ChessBase"]
[SourceQuality "1"]
[TimeControl "600+2"]

{[%evp 13,62,19,42,41,43,16,13,28,24,18,44,41,50,37,43,0,0,0,0,0,-12,0,0,-6,0,-39,-21,-48,0,0,0,0,0,-169,-162,-328,-91,-1910,-1790,-1907,-664,-650,-643,-635,-619,-29977,-29978,-29972,-29973,-29968,-29967]} 1. e4 {[%emt 0:00:05]} e5 {[%emt 0:02:06]} 2. Nf3 {[%emt 0:00:04]} Nc6 {[%emt 0:00:04]} 3. Bc4 {[%emt 0:00:03]} Nf6 {[%emt 0:00:03]} 4. d3 {[%emt 0:00:03]} Be7 {[%emt 0:00:04]} 5. O-O {[%emt 0:00:03]} O-O {[%emt 0:00:02]} 6. a4 {[%emt 0:00:02]} d5 {[%emt 0:00:10]} 7. exd5 {[%emt 0:00:03]} Nxd5 {[%emt 0:00:03]} 8. a5 {[%emt 0:00:03]} b6 {[%emt 0:00:04]} 9. axb6 {[%emt 0:00:04]} Nxb6 {[%emt 0:00:04]} 10. Bb5 {[%emt 0:00:03] The position is equal.} Nb4 {[%emt 0:00:05]} 11. Bd2 {[%emt 0:00:03][%cal Od2b4]} (11. Nxe5 $2 Qd5 12. Re1 Qxb5 $19) 11... Bg4 {[%emt 0:00:55]} 12. Bxb4 {[%emt 0:00:34]} Bxb4 {[%emt 0:00:03]} 13. Bc6 {[%emt 0:00:25] Dodges Qd5} Rb8 {[%emt 0:00:03]} 14. h3 {[%emt 0:00:19]} (14. c3 $5 Be7 15. Nbd2 $14 (15. Rxa7 Qd6 $11)) 14... Bh5 {[%emt 0:00:04]} 15. g4 {[%emt 0:00:54]} Qd6 {[%emt 0:00:26]} 16. gxh5 {[%emt 0:02:29]} Qxc6 {[%emt 0:00:05]} 17. Nxe5 {[%emt 0:00:02]} Qe6 {[%emt 0:00:28]} 18. Ng4 {[%emt 0:00:06][%cal Ob1d2]} f5 {[%emt 0:00:37]} 19. Nh2 {[%emt 0:00:59][%cal Ob1d2]} Bd6 {[%emt 0:00:05]} 20. Nc3 {[%emt 0:00:17]} Nd5 {[%emt 0:00:24]} (20... Nd7 $15) 21. Nxd5 $11 {[%emt 0:00:27]} Qxd5 {[%emt 0:00:02]} 22. b3 {[%emt 0:00:04]} Rb4 {[%emt 0:00:33]} 23. Nf3 {[%emt 0:00:03] Against Rh4} (23. c4 $11 {and White is okay.} Qe5 24. Nf3) 23... Rf4 $19 {[%emt 0:00:10]} 24. Kg2 {[%emt 0:00:04] [#]} (24. Nd2 {only move.}) 24... Rg4+ $2 {[%emt 0:00:20]} (24... g5 $1 $19 {[%cal Rg5g4][%mdl 512] is more deadly. Hoping for ...g4.} 25. Ra4 g4 26. Rxf4 Bxf4) 25. hxg4 $4 {[%emt 0:00:07][%mdl 8192] Now White is beyond hope.} (25. Kh1 $17) 25... fxg4 {[%emt 0:00:02]} 26. Rg1 {[%emt 0:00:10]} gxf3+ {[%emt 0:00:37]} ({Weaker is} 26... Rxf3 27. c4 Qxh5 28. Rh1 $15) (26... Qxh5 $142 27. Kf1 gxf3 (27... Rxf3 $2 28. Qe2 $19)) 27. Kf1 {[%emt 0:00:04]} Qxh5 {[%emt 0:00:03] White is weak on the dark squares} 28. Ra4 {[%emt 0:01:12][%cal Od1d2] [#] Repels Bb4} Re8 $1 {[%emt 0:00:17] ( -> ...Qh3+)} ({Less strong is} 28... Qh3+ 29. Ke1 $17) 29. Re4 {[%emt 0:00:04] Rxe8+ is the strong threat.} Rxe4 {[%emt 0:00:06] Black mates.} 30. dxe4 {[%emt 0:00:02]} Qh3+ {[%emt 0:00:03]} 31. Ke1 {[%emt 0:00:03]} Bb4+ {[%emt 0:00:03] Weighted Error Value: White=0.70/Black=0.53.  Loses game:     	White=2     	---        Missed win:     	---       	Black=1      Mistake:       	White=1     	Black=1      Inaccurate:     	White=3     	Black=1      OK:         	White=6     	Black=8      Best:        	White=1     	Black=1} 0-1

[Event "CCT Chesscom Classic-D2 2024"]
[Site "Online"]
[Date "2024.05.10"]
[Round "1"]
[White "Vachier-Lagrave, Maxime"]
[Black "Van Foreest, Jorden"]
[Result "1/2-1/2"]
[ECO "C84"]
[WhiteElo "2732"]
[BlackElo "2665"]
[Annotator "TA"]
[PlyCount "139"]
[EventDate "2024.05.08"]
[EventType "k.o."]
[EventCountry "NET"]
[SourceTitle "playchess.com"]
[Source "ChessBase"]
[SourceQuality "1"]
[TimeControl "600+2"]

{[%evp 65,139,-123,0,-91,-86,-513,-226,-477,-254,-231,-231,-308,-308,-259,-241,-534,-416,-440,-414,-416,-218,-453,-372,-608,-601,-1041,-378,-355,0,-729,-417,-429,-242,-469,-33,-124,-126,-456,-8,-8,-8,-8,-8,-8,-8,-8,-8,-8,0,0,0,0,0,0,0,0,0,0,0,0,0,0,0,0,0,0,0,0,0,0,0,0,0,0,0,0]} 1. e4 {[%emt 0:00:02]} e5 {[%emt 0:00:02]} 2. Nf3 {[%emt 0:00:01]} Nc6 {[%emt 0:00:01]} 3. Bb5 {[%emt 0:00:00]} a6 {[%emt 0:00:00]} 4. Ba4 {[%emt 0:00:01]} Nf6 {[%emt 0:00:01]} 5. O-O {[%emt 0:00:00]} Be7 {[%emt 0:00:00]} 6. d3 {[%emt 0:00:01]} b5 {[%emt 0:00:02]} 7. Bb3 {[%emt 0:00:01]} d6 {[%emt 0:00:01]} 8. a3 {[%emt 0:00:00]} a5 {[%emt 0:00:01]} 9. c4 {[%emt 0:00:04]} Bg4 {[%emt 0:00:11]} 10. Be3 {[%emt 0:00:01]} bxc4 {[%emt 0:00:02]} 11. Bxc4 {[%emt 0:00:00]} O-O {[%emt 0:00:01]} 12. Nc3 {[%emt 0:00:12]} Rb8 {[%emt 0:00:52]} 13. Qa4 {[%emt 0:00:15]} Bxf3 {[%emt 0:00:32]} 14. Qxc6 {[%emt 0:00:02]} Bg4 {[%emt 0:00:00]} 15. Nd5 {[%emt 0:01:00]} Nxd5 {[%emt 0:00:13]} 16. Bxd5 {[%emt 0:00:00]} Bd7 {[%emt 0:00:05]} 17. Qc3 {[%emt 0:00:26]} c6 {[%emt 0:00:09]} 18. Ba2 {[%emt 0:00:02]} c5 {[%emt 0:00:08]} 19. Rab1 {[%emt 0:00:25]} Kh8 {[%emt 0:00:20]} 20. f4 {[%emt 0:00:59]} exf4 {[%emt 0:00:13]} 21. Bxf4 {[%emt 0:00:01]} Be6 {[%emt 0:01:11]} 22. Bxe6 {[%emt 0:00:44]} fxe6 {[%emt 0:00:02]} 23. b3 {[%emt 0:00:05]} Bf6 {[%emt 0:00:17]} 24. e5 {[%emt 0:00:10]} dxe5 {[%emt 0:00:04]} 25. Bxe5 {[%emt 0:00:01]} Bxe5 {[%emt 0:00:10]} 26. Rxf8+ {[%emt 0:00:00]} Qxf8 {[%emt 0:00:01]} 27. Qxe5 {[%emt 0:00:00]} Qd8 {[%emt 0:00:18]} 28. h3 {[%emt 0:00:59]} a4 {[%emt 0:00:28]} 29. Qc3 {[%emt 0:00:53]} Qb6 {[%emt 0:00:05]} 30. Qc4 {[%emt 0:00:20]} axb3 {[%emt 0:00:05]} 31. Rb2 {[%emt 0:00:00]} h6 {[%emt 0:00:15]} 32. a4 {[%emt 0:00:25]} Qa7 {[%emt 0:00:08]} 33. Kh1 {[%emt 0:00:18]} Qb6 {[%emt 0:00:36]} 34. Kg1 $1 {[%emt 0:00:12]} e5 {[%emt 0:00:22]} 35. Kh2 $2 {[%emt 0:00:11][%mdl 8192]} (35. a5 $17 Qxa5 36. Rxb3 Rxb3 37. Qxb3) 35... Qb4 {[%emt 0:00:02]} (35... Qd6 $142 36. g3 Rb4) 36. a5 $2 {[%emt 0:00:46]} (36. Qxb4 Rxb4 37. a5) 36... e4 {[%emt 0:00:36]} (36... Qxa5 37. Rxb3 Rxb3 38. Qxb3 $15) (36... Qa3 $142 37. Qc3 e4) 37. a6 $19 {[%emt 0:00:07] [#]} Qa3 $1 {[%emt 0:01:00]} 38. Qxe4 {[%emt 0:00:37]} Qxa6 $1 {[%emt 0:00:13]} ({Weaker is} 38... Qxb2 39. a7 Rf8 40. a8=Q Rxa8 41. Qxa8+ Kh7 42. Qe4+ g6 43. Qb7+ Kh8 44. Qc8+ Kg7 45. Qd7+ Kf6 46. Qc6+ Kg7 47. Qxc5 $11) 39. Qe5 {[%emt 0:00:00]} Qb6 {[%emt 0:00:16]} 40. h4 $2 {[%emt 0:00:21]} (40. Qc3) 40... Qb4 {[%emt 0:00:03]} 41. g3 {[%emt 0:00:07]} Qb5 {[%emt 0:00:41]} 42. Qd5 {[%emt 0:00:11]} Qb6 {[%emt 0:00:02]} 43. Qe5 $2 {[%emt 0:00:01]} (43. Kh3) 43... Qa7 {[%emt 0:00:17]} 44. Re2 $2 {[%emt 0:00:33]} (44. Qd6) 44... Qb7 $19 {[%emt 0:00:15]} 45. Rb2 {[%emt 0:00:02]} Qb4 $2 {[%emt 0:00:00]} (45... Ra8 46. h5 Qf7) 46. Kh3 {[%emt 0:00:22]} Qb7 $2 {[%emt 0:00:28]} (46... Qb5 47. Kh2 Qb4) 47. Kh2 $1 $19 {[%emt 0:00:01]} Qb6 {[%emt 0:00:03]} 48. Qd5 {[%emt 0:00:06]} Qb5 {[%emt 0:00:12]} (48... Qa7 $142 49. Kh3 Qa3) 49. Qe5 $2 {[%emt 0:00:07]} (49. Qd6) 49... Rb6 $2 {[%emt 0:00:01]} (49... Qb7 $19 50. Qe6 Qa8) 50. Qd5 {[%emt 0:00:11]} (50. Rf2 $15 Rb8 (50... Qxd3 51. Rf8+ Kh7 52. Qe8 Qc2+ 53. Kh3) 51. Rb2) 50... Qb4 $17 {[%emt 0:00:07]} 51. h5 $2 {[%emt 0:00:12][%mdl 8192]} (51. Kh3 $17 {is tougher.}) 51... Qd4 $2 {[%emt 0:00:18]} (51... Rb8 $19 {Strongly threatening ...Qc3.} 52. Qe5 Rf8) 52. Qxd4 $11 {[%emt 0:00:01]} cxd4 {[%emt 0:00:00]} 53. Kg2 {[%emt 0:00:00]} Kg8 {[%emt 0:00:07]} 54. Kf3 {[%emt 0:00:01]} Kf7 {[%emt 0:00:05]} 55. Ke4 {[%emt 0:00:00]} Rb4 {[%emt 0:00:04]} 56. Kd5 {[%emt 0:00:01]} Kf6 {[%emt 0:00:01]} 57. Kc5 {[%emt 0:00:00]} Rb8 {[%emt 0:00:01]} 58. Kxd4 {[%emt 0:00:01]} Kg5 {[%emt 0:00:00]} 59. Kc4 {[%emt 0:00:02]} Kxh5 {[%emt 0:00:01]} 60. Rxb3 {[%emt 0:00:01]} Rc8+ {[%emt 0:00:04]} 61. Kd5 {[%emt 0:00:01]} Kg4 {[%emt 0:00:00]} 62. d4 {[%emt 0:00:01]} g5 {[%emt 0:00:01]} 63. Ke6 {[%emt 0:00:03]} h5 {[%emt 0:00:01]} 64. d5 {[%emt 0:00:01]} h4 {[%emt 0:00:01]} 65. gxh4 {[%emt 0:00:00]} gxh4 {[%emt 0:00:00]} 66. d6 {[%emt 0:00:01]} h3 {[%emt 0:00:01]} 67. Rxh3 {[%emt 0:00:01]} Kxh3 {[%emt 0:00:02]} 68. d7 {[%emt 0:00:00]} Rd8 {[%emt 0:00:00]} 69. Ke7 {[%emt 0:00:01]} Rxd7+ {[%emt 0:00:00]} 70. Kxd7 {[%emt 0:00:00]} 1/2-1/2

[Event "CCT Chesscom Classic-D2 2024"]
[Site "Online"]
[Date "2024.05.10"]
[Round "1"]
[White "Vachier-Lagrave, Maxime"]
[Black "Van Foreest, Jorden"]
[Result "1-0"]
[ECO "C84"]
[WhiteElo "2732"]
[BlackElo "2665"]
[Annotator "RC"]
[PlyCount "61"]
[EventDate "2024.05.08"]
[EventType "k.o."]
[EventCountry "NET"]
[SourceTitle "playchess.com"]
[Source "ChessBase"]
[SourceQuality "1"]
[TimeControl "600+2"]

1. e4 {[%emt 0:00:02]} e5 {[%emt 0:00:05]} 2. Nf3 {[%emt 0:00:01]} Nc6 {[%emt 0:00:02]} 3. Bb5 {[%emt 0:00:01]} a6 {[%emt 0:00:02]} 4. Ba4 {[%emt 0:00:01]} Nf6 {[%emt 0:00:02]} 5. O-O {[%emt 0:00:01]} Be7 {[%emt 0:00:03]} 6. d3 {[%emt 0:00:04]} b5 {[%emt 0:00:02]} 7. Bb3 {[%emt 0:00:00]} d6 {[%emt 0:00:04]} 8. a3 {[%emt 0:00:09]} a5 {[%emt 0:00:04]} 9. c4 {[%emt 0:00:35]} Bg4 {[%emt 0:00:33]} 10. Be3 {[%emt 0:00:02]} bxc4 {[%emt 0:00:42]} 11. Bxc4 {[%emt 0:00:00]} O-O {[%emt 0:00:02]} 12. Nc3 {[%emt 0:00:08]} Nd4 {[%emt 0:00:03]} 13. Bxd4 {[%emt 0:00:12]} exd4 {[%emt 0:00:01]} 14. Nb5 {[%emt 0:00:20]} Nd7 {[%emt 0:00:14]} 15. Nbxd4 {[%emt 0:00:05]} Bf6 {[%emt 0:00:33]} 16. Nc6 {[%emt 0:02:07]} Qe8 {[%emt 0:00:03]} 17. Bd5 {[%emt 0:00:04]} Nb8 {[%emt 0:00:23]} 18. Rc1 {[%emt 0:01:11]} Ra6 {[%emt 0:00:27]} 19. Nxb8 {[%emt 0:00:15]} Qxb8 {[%emt 0:00:00]} 20. b3 {[%emt 0:00:13]} Bb2 {[%emt 0:00:22]} 21. Rc2 {[%emt 0:00:00]} Bxa3 {[%emt 0:00:03]} 22. d4 {[%emt 0:00:01]} c5 {[%emt 0:00:45]} 23. Bc4 {[%emt 0:00:14]} Rb6 {[%emt 0:00:12]} 24. d5 {[%emt 0:00:11]} Re8 {[%emt 0:00:33]} 25. Qd3 {[%emt 0:00:03]} Bd7 {[%emt 0:00:28]} 26. Re2 {[%emt 0:00:33]} Bb5 {[%emt 0:00:20]} 27. e5 {[%emt 0:00:10]} dxe5 {[%emt 0:00:11]} 28. Ng5 {[%emt 0:01:11]} g6 {[%emt 0:00:09]} 29. d6 {[%emt 0:00:01]} Rxd6 {[%emt 0:01:21]} 30. Qf3 {[%emt 0:00:01]} h5 {[%emt 0:00:01]} 31. Qxf7+ {[%emt 0:00:02]} 1-0